bitfinex-derivatives/quotes_ETHF0:USTF0_20260118
["timestamp","ask_amount","ask_price","bid_price","bid_amount"]
[1768722184564,1.06765181,3310.4,3309.2,0.9747616]
[1768722184762,1.06765181,3310.3,3309.2,0.9747616]
[1768722184965,1.06765181,3310.2,3309.2,0.9747616]
[1768722185164,0.0037179,3310.5,3309.2,0.9747616]
[1768722185367,1.06764961,3310.4,3309.2,0.9747616]
[1768722185666,1.06764961,3310.3,3309.2,0.9747616]
[1768722185865,1.06764961,3310.2,3309.2,0.9747616]
[1768722186065,0.0037179,3310.5,3309.2,0.9747616]
[1768722186266,1.06759181,3310.4,3309.2,0.9747616]
[1768722186566,1.06759181,3310.3,3309.2,0.9747616]
[1768722186869,1.06759181,3310.2,3309.2,0.9747616]
[1768722187165,0.0037179,3310.5,3309.2,0.9747616]
[1768722187369,1.0675502,3310.4,3309.2,0.9747616]
[1768722187554,1.0675502,3310.3,3309.2,0.9747616]
[1768722187760,1.0675502,3310.2,3309.2,0.9747616]
[1768722187960,0.0037179,3310.5,3309.2,0.9747616]
[1768722188253,1.06751808,3310.4,3309.2,0.9747616]
[1768722188464,1.06751808,3310.3,3309.2,0.9747616]
[1768722188658,1.06751808,3310.2,3309.2,0.9747616]
[1768722188861,0.0037179,3310.5,3309.2,0.9747616]
[1768722189065,1.0674908,3310.4,3309.2,0.9747616]
[1768722189262,1.0674908,3310.3,3309.2,0.9747616]
[1768722189458,1.0674908,3310.2,3309.2,0.9747616]
[1768722189662,0.0037179,3310.5,3309.2,0.9747616]
[1768722189966,1.06746915,3310.4,3309.3,0.1493412]
[1768722190169,1.06746915,3310.3,3309.3,0.1493412]
[1768722190370,1.06746915,3310.2,3309.3,0.1493412]
[1768722190562,0.0037179,3310.5,3309.3,0.1493412]
[1768722190761,1.06744347,3310.4,3309.3,0.1493412]
[1768722190967,1.06744347,3310.3,3309.3,0.1493412]
[1768722191166,0.0037179,3310.5,3309.3,0.1493412]
[1768722191167,1.06744347,3310.2,3309.3,0.1493412]
[1768722191368,0.0037179,3310.5,3309.3,0.1493412]
[1768722191572,1.06740559,3310.4,3309.3,0.1493412]
[1768722191872,1.06740559,3310.3,3309.3,0.1493412]
[1768722192067,1.06740559,3310.2,3309.3,0.1493412]
[1768722192268,0.0037179,3310.5,3309.3,0.1493412]
[1768722192469,1.06736887,3310.4,3309.3,0.1493412]
[1768722192673,1.06736887,3310.3,3309.3,0.1493412]
[1768722192971,1.06736887,3310.2,3309.3,0.1493412]
[1768722193173,0.0037179,3310.5,3309.3,0.1493412]
[1768722193371,1.06736463,3310.4,3309.3,0.1493412]
[1768722193669,1.06736463,3310.3,3309.3,0.1493412]
[1768722193870,1.06736463,3310.2,3309.3,0.1493412]
[1768722194074,0.0037179,3310.5,3309.3,0.1493412]
[1768722194374,1.06733425,3310.4,3309.3,0.1493412]
[1768722194572,1.06733425,3310.3,3309.3,0.1493412]
[1768722194768,1.06733425,3310.2,3309.3,0.1493412]
[1768722194965,0.0037179,3310.5,3309.3,0.1493412]
[1768722195170,1.06731511,3310.4,3309.3,0.1493412]
[1768722195369,1.06731511,3310.3,3309.3,0.1493412]
[1768722195569,1.06731511,3310.2,3309.3,0.1493412]
[1768722195771,0.0037179,3310.5,3309.3,0.1493412]
[1768722195971,1.06729904,3310.4,3309.3,0.1493412]
[1768722196273,1.06729904,3310.3,3309.3,0.1493412]
[1768722196472,0.0037179,3310.5,3309.4,0.9747616]
[1768722196674,1.06735816,3310.4,3309.4,0.9747616]
[1768722196872,0.0037179,3310.5,3309.4,0.9747616]
[1768722197070,1.06735636,3310.4,3309.4,0.9747616]
[1768722197281,0.0037179,3310.5,3309.4,0.9747616]
[1768722197573,1.0672491,3310.4,3309.4,0.9747616]
[1768722197773,0.0037179,3310.5,3309.4,0.9747616]
[1768722198073,1.06724909,3310.4,3309.4,0.9747616]
[1768722198274,0.0037179,3310.5,3309.4,0.9747616]
[1768722198474,1.06716925,3310.4,3309.4,0.9747616]
[1768722198773,0.0037179,3310.5,3309.4,0.9747616]
[1768722198973,1.06717025,3310.4,3309.4,0.9747616]
[1768722199169,0.0037179,3310.5,3309.4,0.9747616]
[1768722199366,1.06717677,3310.4,3309.4,0.9747616]
[1768722199572,0.0037179,3310.5,3309.4,0.9747616]
[1768722199870,1.06710373,3310.4,3309.4,0.9747616]
[1768722200071,0.0037179,3310.5,3309.4,0.9747616]
[1768722200275,1.06711355,3310.4,3309.4,0.9747616]
[1768722200575,0.0037179,3310.5,3309.4,0.9747616]
[1768722200774,1.06706083,3310.4,3309.4,0.9747616]
[1768722200975,0.0037179,3310.5,3309.4,0.9747616]
[1768722201176,1.06706083,3310.4,3309.4,0.9747616]
[1768722201477,0.0037179,3310.5,3309.4,0.9747616]
[1768722201670,1.06703144,3310.4,3309.4,0.9747616]
[1768722201869,0.0037179,3310.5,3309.4,1.1241028]
[1768722202070,1.06701957,3310.4,3309.4,0.1493412]
[1768722202268,0.0037179,3310.5,3309.4,1.1241028]
[1768722202472,1.06699942,3310.4,3309.4,1.1241028]
[1768722202671,0.0037179,3310.5,3309.4,1.1241028]
[1768722202878,1.0670603,3310.4,3309.4,1.1241028]
[1768722203072,0.0037179,3310.5,3309.4,1.1241028]
[1768722203276,1.06706971,3310.4,3309.4,1.1241028]
[1768722203475,0.0037179,3310.5,3309.4,1.1241028]
[1768722203779,1.06704116,3310.4,3309.4,1.1241028]
[1768722204080,0.0037179,3310.5,3309.4,1.1241028]
[1768722204272,1.06706683,3310.4,3309.4,1.1241028]
[1768722204479,0.0037179,3310.5,3309.4,1.1241028]
[1768722204678,1.06704703,3310.4,3309.4,1.1241028]
[1768722204875,0.0037179,3310.5,3309.4,1.1241028]
[1768722205074,1.06704709,3310.4,3309.4,1.1241028]
[1768722205276,0.0037179,3310.5,3309.4,1.1241028]
[1768722205477,1.06704726,3310.4,3309.4,1.1241028]
[1768722205676,0.0037179,3310.5,3309.4,1.1241028]
[1768722205877,1.06704726,3310.4,3309.4,1.1241028]
[1768722206077,0.0037179,3310.5,3309.4,1.1241028]
[1768722206278,1.06705957,3310.4,3309.4,1.1241028]
[1768722206480,0.0037179,3310.5,3309.4,1.1241028]
[1768722206777,1.06704965,3310.4,3309.4,1.1241028]
[1768722206976,0.0037179,3310.5,3309.4,1.1241028]
[1768722207176,1.06704962,3310.4,3309.4,1.1241028]
[1768722207375,0.0037179,3310.5,3309.4,1.1241028]
[1768722207584,1.06705872,3310.4,3309.4,1.1241028]
[1768722207882,0.0037179,3310.5,3309.4,1.1241028]
[1768722208180,1.06705872,3310.4,3309.4,1.1241028]
[1768722208380,0.0037179,3310.5,3309.4,1.1241028]
[1768722208581,1.067076,3310.4,3309.4,1.1241028]
[1768722208882,0.0037179,3310.5,3309.4,1.1241028]
[1768722209082,1.06707606,3310.4,3309.4,1.1241028]
[1768722209283,0.0037179,3310.5,3309.4,1.1241028]
[1768722209472,1.06710182,3310.4,3309.5,0.15680437]
[1768722209670,0.0037179,3310.5,3309.6,1.13156597]
[1768722211884,0.0037179,3310.5,3309.6,1.13096602]
[1768722212780,0.0037179,3310.5,3309.7,0.15680437]
[1768722239626,1.77687183,3311.3,3309.7,0.15680437]
[1768722239810,1.39475732,3311.2,3309.7,0.15680437]
[1768722240015,1.39475732,3311.1,3309.7,0.15680437]
[1768722240227,1.06347025,3311.0,3309.7,0.15680437]
[1768722240522,1.06347025,3310.9,3309.7,0.15680437]
[1768722240721,1.06347025,3310.8,3309.7,0.15680437]
[1768722241023,1.06347025,3310.7,3309.7,0.15680437]
[1768722241218,0.00225341,3311.0,3309.7,0.15680437]
[1768722241415,1.06346839,3310.9,3309.7,0.15680437]
[1768722241616,1.06346839,3310.8,3309.7,0.15680437]
[1768722241816,1.06346839,3310.7,3309.7,0.15680437]
[1768722242019,0.00225341,3311.0,3309.7,0.15680437]
[1768722242327,1.0634982,3310.9,3309.7,0.15680437]
[1768722242521,1.0634982,3310.8,3309.7,0.15680437]
[1768722242818,1.0634982,3310.7,3309.7,0.15680437]
[1768722243015,0.00225341,3311.0,3309.7,0.15680437]
[1768722243217,1.06348818,3310.9,3309.7,0.15680437]
[1768722243417,1.06348818,3310.8,3309.7,0.15680437]
[1768722243623,1.06348818,3310.7,3309.7,0.15680437]
[1768722243827,0.00225341,3311.0,3309.7,0.15680437]
[1768722244023,1.06345169,3310.9,3309.7,0.15680437]
[1768722244219,1.06345169,3310.8,3309.7,0.15680437]
[1768722244517,1.06345169,3310.7,3309.7,0.15680437]
[1768722244717,0.00225341,3311.0,3309.7,0.15680437]
[1768722244915,1.06342363,3310.9,3309.7,0.15680437]
[1768722245221,1.06342363,3310.8,3309.7,0.15680437]
[1768722245416,1.06342363,3310.7,3309.7,0.15680437]
[1768722245616,0.00225341,3311.0,3309.7,0.15680437]
[1768722245927,1.06340186,3310.9,3309.7,0.15680437]
[1768722246120,1.06340186,3310.8,3309.7,0.15680437]
[1768722246322,1.06340186,3310.7,3309.7,0.15680437]
[1768722246619,0.00225341,3311.0,3309.7,0.15680437]
[1768722246926,1.06338584,3310.9,3309.7,0.15680437]
[1768722247128,1.06338584,3310.8,3309.7,0.15680437]
[1768722247317,1.06338584,3310.7,3309.7,0.15680437]
[1768722247626,0.00225341,3311.0,3309.7,0.15680437]
[1768722247823,1.06337274,3310.9,3309.7,0.15680437]
[1768722248021,1.06337274,3310.8,3309.7,0.15680437]
[1768722248319,1.06337274,3310.7,3309.7,0.15680437]
[1768722248520,0.00225341,3311.0,3309.7,0.15680437]
[1768722248721,1.06334098,3310.9,3309.7,0.15680437]
[1768722249026,1.06334098,3310.8,3309.7,0.15680437]
[1768722249218,0.00225341,3311.0,3309.7,0.15680437]
[1768722249219,1.06334098,3310.7,3309.7,0.15680437]
[1768722249420,0.00225341,3311.0,3309.7,0.15680437]
[1768722249619,1.06333305,3310.9,3309.7,0.15680437]
[1768722249828,1.06333305,3310.8,3309.7,0.15680437]
[1768722250020,1.06333305,3310.7,3309.7,0.15680437]
[1768722250318,0.00225341,3311.0,3309.7,0.15680437]
[1768722250617,1.06332325,3310.9,3309.7,0.15680437]
[1768722250814,1.06332325,3310.8,3309.7,0.15680437]
[1768722251023,1.06332325,3310.7,3309.7,0.15680437]
[1768722251223,0.00225341,3311.0,3309.7,0.15680437]
[1768722251425,1.06331984,3310.9,3309.7,0.15680437]
[1768722251628,1.06331984,3310.8,3309.7,0.15680437]
[1768722251818,1.06331984,3310.7,3309.7,0.15680437]
[1768722252021,0.00225341,3311.0,3309.7,0.15680437]
[1768722252222,1.06331608,3310.9,3309.7,0.15680437]
[1768722252424,1.06331608,3310.8,3309.7,0.15680437]
[1768722252625,1.06331608,3310.7,3309.7,0.15680437]
[1768722252924,0.00225341,3311.0,3309.7,0.15680437]
[1768722253125,1.06331186,3310.9,3309.7,0.15680437]
[1768722253324,1.06331186,3310.8,3309.7,0.15680437]
[1768722253622,1.06331186,3310.7,3309.7,0.15680437]
[1768722253818,0.00225341,3311.0,3309.7,0.15680437]
[1768722254022,1.06329511,3310.9,3309.7,0.15680437]
[1768722254224,1.06329511,3310.8,3309.7,0.15680437]
[1768722254433,1.06329511,3310.7,3309.7,0.15680437]
[1768722254732,0.00225341,3311.0,3309.7,0.15680437]
[1768722255035,1.06329596,3310.9,3309.7,0.15680437]
[1768722255223,1.06329596,3310.8,3309.7,0.15680437]
[1768722255424,1.06329596,3310.7,3309.7,0.15680437]
[1768722255726,0.00225341,3311.0,3309.7,0.15680437]
[1768722255924,1.06329354,3310.9,3309.7,0.15680437]
[1768722256126,1.06329354,3310.8,3309.7,0.15680437]
[1768722256326,1.06329354,3310.7,3309.7,0.15680437]
[1768722256625,0.00225341,3311.0,3309.7,0.15680437]
[1768722256826,1.06329375,3310.9,3309.7,0.15680437]
[1768722257033,1.06329375,3310.8,3309.7,0.15680437]
[1768722257335,1.06329375,3310.7,3309.7,0.15680437]
[1768722257535,0.00225341,3311.0,3309.7,0.15680437]
[1768722257725,1.06330016,3310.9,3309.7,0.15680437]
[1768722257925,1.06330016,3310.8,3309.7,0.15680437]
[1768722258130,1.06330016,3310.7,3309.7,0.15680437]
[1768722258330,0.00225341,3311.0,3309.7,0.15680437]
[1768722258531,1.06331312,3310.9,3309.7,0.15680437]
[1768722258831,1.06331312,3310.8,3309.7,0.15680437]
[1768722259034,0.00225341,3311.0,3309.7,0.15680437]
[1768722259330,1.06328029,3310.9,3309.7,0.15680437]
[1768722259530,1.06328029,3310.8,3309.7,0.15680437]
[1768722259847,0.00225341,3311.0,3309.7,0.15680437]
[1768722260040,1.06328647,3310.9,3309.7,0.15680437]
[1768722260340,0.00225341,3311.0,3309.7,0.15680437]
[1768722260541,1.06327675,3310.9,3309.7,0.15680437]
[1768722260743,0.00225341,3311.0,3309.7,0.15680437]
[1768722260939,1.06327675,3310.9,3309.7,0.15680437]
[1768722261131,0.00225341,3311.0,3309.7,0.15680437]
[1768722261331,1.06316053,3310.9,3309.7,0.15680437]
[1768722261543,0.00225341,3311.0,3309.7,0.15680437]
[1768722261838,1.06316579,3310.9,3309.7,0.15680437]
[1768722262043,0.00225341,3311.0,3309.7,0.15680437]
[1768722293360,0.00225341,3311.0,3310.0,0.13433171]
[1768722336106,0.97624028,3311.0,3310.0,0.13433171]
[1768722336303,0.97398687,3310.8,3310.0,0.13433171]
[1768722336605,0.97398687,3310.6,3310.0,0.13433171]
[1768722337804,0.00225341,3311.0,3310.0,0.13433171]
[1768722338009,0.97398687,3310.7,3310.0,0.13433171]
[1768722342406,0.97398687,3310.9,3310.0,0.13433171]
[1768722343703,0.97398687,3310.9,3309.6,0.1422531]
[1768722344006,1.06297024,3310.8,3309.6,0.1422531]
[1768722344201,0.97398687,3310.9,3309.6,0.1422531]
[1768722344405,1.06273687,3310.8,3309.6,0.1422531]
[1768722344609,0.97398687,3310.9,3309.6,0.1422531]
[1768722344909,1.06273867,3310.8,3309.6,0.1422531]
[1768722345208,0.97398687,3310.9,3309.6,0.1422531]
[1768722345409,1.06260471,3310.8,3309.6,0.1422531]
[1768722345709,0.97398687,3310.9,3309.6,0.1422531]
[1768722346009,1.06263318,3310.8,3309.6,0.1422531]
[1768722346210,0.97398687,3310.9,3309.6,0.1422531]
[1768722346409,1.06253363,3310.8,3309.6,0.1422531]
[1768722346610,0.97398687,3310.9,3309.6,0.1422531]
[1768722346815,1.0625334,3310.8,3309.6,0.1422531]
[1768722347000,0.97398687,3310.9,3309.6,0.1422531]
[1768722347202,1.06253335,3310.8,3309.6,0.1422531]
[1768722347402,0.97398687,3310.9,3309.6,0.1422531]
[1768722347602,1.06245383,3310.8,3309.6,0.1422531]
[1768722347799,0.97398687,3310.9,3309.6,0.1422531]
[1768722348004,1.06246684,3310.8,3309.6,0.1422531]
[1768722348212,0.97398687,3310.9,3309.6,0.1422531]
[1768722348402,1.062401,3310.8,3309.6,0.1422531]
[1768722348603,0.97398687,3310.9,3309.6,0.1422531]
[1768722348812,1.06240129,3310.8,3309.6,0.1422531]
[1768722349012,0.97398687,3310.9,3309.6,0.1422531]
[1768722349216,1.0624119,3310.8,3309.6,0.1422531]
[1768722349411,0.97398687,3310.9,3309.6,0.1422531]
[1768722349610,1.06235779,3310.8,3309.6,0.1422531]
[1768722349812,0.97398687,3310.9,3309.6,0.1422531]
[1768722350008,1.06236104,3310.8,3309.6,0.1422531]
[1768722350206,0.97398687,3310.9,3309.6,0.1422531]
[1768722350413,0.97398687,3310.7,3309.6,0.1422531]
[1768722355423,0.00225341,3311.0,3309.6,0.1422531]
[1768722355721,1.06221479,3310.9,3309.6,0.1422531]
[1768722355924,1.06221479,3310.8,3309.6,0.1422531]
[1768722356126,0.00225341,3311.0,3309.6,0.1422531]
[1768722356424,1.06220335,3310.9,3309.6,0.1422531]
[1768722356614,1.06220335,3310.8,3309.6,0.1422531]
[1768722356810,0.00225341,3311.0,3309.6,0.1422531]
[1768722357114,1.06220206,3310.9,3309.6,0.1422531]
[1768722357309,1.06220206,3310.8,3309.6,0.1422531]
[1768722357527,0.00225341,3311.0,3309.6,0.1422531]
[1768722357730,1.06220115,3310.9,3309.6,0.1422531]
[1768722357919,1.06220115,3310.8,3309.6,0.1422531]
[1768722358214,0.00225341,3311.0,3309.6,0.1422531]
[1768722358415,1.06220411,3310.9,3309.6,0.1422531]
[1768722358713,1.06220411,3310.8,3309.6,0.1422531]
[1768722358914,0.00225341,3311.0,3309.6,0.1422531]
[1768722359113,1.06220417,3310.9,3309.6,0.1422531]
[1768722359322,1.06220417,3310.8,3309.6,0.1422531]
[1768722359521,0.00225341,3311.0,3309.6,0.1422531]
[1768722359723,1.06221424,3310.9,3309.6,0.1422531]
[1768722359923,1.06221424,3310.8,3309.6,0.1422531]
[1768722360123,0.00225341,3311.0,3309.6,0.1422531]
[1768722360424,1.06222566,3310.9,3309.6,0.1422531]
[1768722360627,1.06222566,3310.8,3309.6,0.1422531]
[1768722360824,0.00225341,3311.0,3309.6,0.1422531]
[1768722361128,1.06222569,3310.9,3309.6,0.1422531]
[1768722361329,1.06222569,3310.8,3309.6,0.1422531]
[1768722361532,0.00225341,3311.0,3309.6,0.1422531]
[1768722361733,1.06224613,3310.9,3309.6,0.1422531]
[1768722361932,1.06224613,3310.8,3309.6,0.1422531]
[1768722362130,0.00225341,3311.0,3309.6,0.1422531]
[1768722362334,1.06227634,3310.9,3309.6,0.1422531]
[1768722362634,1.06227634,3310.8,3309.6,0.1422531]
[1768722362835,0.00225341,3311.0,3309.6,0.1422531]
[1768722363035,1.06227634,3310.9,3309.6,0.1422531]
[1768722363237,1.06227634,3310.8,3309.6,0.1422531]
[1768722363436,0.00225341,3311.0,3309.6,0.1422531]
[1768722363735,1.06230316,3310.9,3309.6,0.1422531]
[1768722363937,1.06230316,3310.8,3309.6,0.1422531]
[1768722364123,0.00225341,3311.0,3309.6,0.1422531]
[1768722364327,1.06234086,3310.9,3309.6,0.1422531]
[1768722364536,1.06234086,3310.8,3309.6,0.1422531]
[1768722364729,0.00225341,3311.0,3309.6,0.1422531]
[1768722364930,1.06234092,3310.9,3309.6,0.1422531]
[1768722365129,1.06234092,3310.8,3309.6,0.1422531]
[1768722365330,0.00225341,3311.0,3309.6,0.1422531]
[1768722365537,1.06238992,3310.9,3309.6,0.1422531]
[1768722365733,1.06238992,3310.8,3309.6,0.1422531]
[1768722365934,0.00225341,3311.0,3309.6,0.1422531]
[1768722366129,1.06238992,3310.9,3309.6,0.1422531]
[1768722366329,1.06238992,3310.8,3309.6,0.1422531]
[1768722366530,0.00225341,3311.0,3309.6,0.1422531]
[1768722366733,1.06245029,3310.9,3309.6,0.1422531]
[1768722367033,1.06245029,3310.8,3309.6,0.1422531]
[1768722367228,0.00225341,3311.0,3309.6,0.1422531]
[1768722367428,1.06248758,3310.9,3309.6,0.1422531]
[1768722367627,1.06248758,3310.8,3309.6,0.1422531]
[1768722367838,0.00225341,3311.0,3309.6,0.1422531]
[1768722368135,1.06248758,3310.9,3309.6,0.1422531]
[1768722368335,1.06248758,3310.8,3309.6,0.1422531]
[1768722368538,0.00225341,3311.0,3309.6,0.1422531]
[1768722368726,1.06253348,3310.9,3309.6,0.1422531]
[1768722368929,1.06253348,3310.8,3309.6,0.1422531]
[1768722369236,0.00225341,3311.0,3309.6,0.1422531]
[1768722369538,1.06259448,3310.9,3309.6,0.1422531]
[1768722369736,1.06259448,3310.8,3309.6,0.1422531]
[1768722369935,0.00225341,3311.0,3309.6,0.1422531]
[1768722370139,1.06259295,3310.9,3309.6,0.1422531]
[1768722370336,1.06259295,3310.8,3309.6,0.1422531]
[1768722370541,0.00225341,3311.0,3309.6,0.1422531]
[1768722370734,1.06266603,3310.9,3309.6,0.1422531]
[1768722370932,1.06266603,3310.8,3309.6,0.1422531]
[1768722371135,0.00225341,3311.0,3309.6,0.1422531]
[1768722371333,1.06275894,3310.9,3309.6,0.1422531]
[1768722371534,1.06275894,3310.8,3309.6,0.1422531]
[1768722371734,0.00225341,3311.0,3309.6,0.1422531]
[1768722371936,1.06275834,3310.9,3309.6,0.1422531]
[1768722372136,1.06275834,3310.8,3309.6,0.1422531]
[1768722372438,1.06275834,3310.7,3309.6,0.1422531]
[1768722372641,0.00225341,3311.0,3309.6,0.1422531]
[1768722372937,1.06288351,3310.9,3309.6,0.1422531]
[1768722373136,1.06288351,3310.8,3309.6,0.1422531]
[1768722373338,1.06288351,3310.7,3309.6,0.1422531]
[1768722373540,0.00225341,3311.0,3309.6,0.1422531]
[1768722373742,1.06313699,3310.9,3309.6,0.1422531]
[1768722374040,1.06313699,3310.8,3309.6,0.1422531]
[1768722374241,1.06313699,3310.7,3309.6,0.1422531]
[1768722374429,0.00225341,3311.0,3309.6,0.1422531]
[1768722374634,1.06313744,3310.9,3309.6,0.1422531]
[1768722374834,1.06313744,3310.8,3309.6,0.1422531]
[1768722375035,1.06313744,3310.7,3309.6,0.1422531]
[1768722375236,0.00225341,3311.0,3309.6,0.1422531]
[1768722375545,1.0631401,3310.9,3309.6,0.1422531]
[1768722375743,1.0631401,3310.8,3309.6,0.1422531]
[1768722376043,1.0631401,3310.7,3309.6,0.1422531]
[1768722376236,0.00225341,3311.0,3309.6,0.1422531]
[1768722376434,1.06314152,3310.9,3309.6,0.1422531]
[1768722376635,1.06314152,3310.8,3309.6,0.1422531]
[1768722376842,1.06314152,3310.7,3309.6,0.1422531]
[1768722377143,0.00225341,3311.0,3309.6,0.1422531]
[1768722377346,1.06314311,3310.9,3309.6,0.1422531]
[1768722377643,1.06314311,3310.8,3309.6,0.1422531]
[1768722377837,1.06314311,3310.7,3309.6,0.1422531]
[1768722378035,0.00225341,3311.0,3309.6,0.1422531]
[1768722378235,1.06314211,3310.9,3309.6,0.1422531]
[1768722378436,1.06314211,3310.8,3309.6,0.1422531]
[1768722378746,1.06314211,3310.7,3309.6,0.1422531]
[1768722378939,0.00225341,3311.0,3309.6,0.1422531]
[1768722379135,1.06314579,3310.9,3309.6,0.1422531]
[1768722379337,1.06314579,3310.8,3309.6,0.1422531]
[1768722379537,1.06314579,3310.7,3309.6,0.1422531]
[1768722379737,0.00225341,3311.0,3309.6,0.1422531]
[1768722379937,1.06314833,3310.9,3309.6,0.1422531]
[1768722380134,1.06314833,3310.8,3309.6,0.1422531]
[1768722380337,1.06314833,3310.7,3309.6,0.1422531]
[1768722380538,0.00225341,3311.0,3309.6,0.1422531]
[1768722380737,1.06314987,3310.9,3309.6,0.1422531]
[1768722380942,1.06314987,3310.8,3309.6,0.1422531]
[1768722381248,1.06314987,3310.7,3309.6,0.1422531]
[1768722381441,0.00225341,3311.0,3309.6,0.1422531]
[1768722381748,1.06315086,3310.9,3309.6,0.1422531]
[1768722381948,1.06315086,3310.8,3309.6,0.1422531]
[1768722382140,1.06315086,3310.7,3309.6,0.1422531]
[1768722382342,0.00225341,3311.0,3309.6,0.1422531]
[1768722382646,1.06314952,3310.9,3309.6,0.1422531]
[1768722382845,1.06314952,3310.8,3309.6,0.1422531]
[1768722383039,1.06314952,3310.7,3309.6,0.1422531]
[1768722383240,0.00225341,3311.0,3309.6,0.1422531]
[1768722383441,1.06363166,3310.9,3309.6,0.1422531]
[1768722383643,1.06363166,3310.8,3309.6,0.1422531]
[1768722383948,1.06363166,3310.7,3309.6,0.1422531]
[1768722384139,0.00225341,3311.0,3309.6,0.1422531]
[1768722384338,1.06363014,3310.9,3309.6,0.1422531]
[1768722384547,1.06363014,3310.8,3309.6,0.1422531]
[1768722384847,1.06363014,3310.7,3309.6,0.1422531]
[1768722385048,0.00225341,3311.0,3309.6,0.1422531]
[1768722385249,1.06362965,3310.9,3309.6,0.1422531]
[1768722385447,1.06362965,3310.8,3309.6,0.1422531]
[1768722385637,1.06362965,3310.7,3309.6,0.1422531]
[1768722385847,0.00225341,3311.0,3309.6,0.1422531]
[1768722386144,1.06363104,3310.9,3309.6,0.1422531]
[1768722386345,1.06363104,3310.8,3309.6,0.1422531]
[1768722386547,1.06363104,3310.7,3309.6,0.1422531]
[1768722386748,0.00225341,3311.0,3309.6,0.1422531]
[1768722386945,1.06362815,3310.9,3309.6,0.1422531]
[1768722387144,1.06362815,3310.8,3309.6,0.1422531]
[1768722387345,1.06362815,3310.7,3309.6,0.1422531]
[1768722387545,0.00225341,3311.0,3309.6,0.1422531]
[1768722387848,1.06362368,3310.9,3309.6,0.1422531]
[1768722388037,1.06362368,3310.8,3309.6,0.1422531]
[1768722388237,1.06362368,3310.7,3309.6,0.1422531]
[1768722388437,0.00225341,3311.0,3309.6,0.1422531]
[1768722388737,1.06362021,3310.9,3309.6,0.1422531]
[1768722388937,1.06362021,3310.8,3309.6,0.1422531]
[1768722389156,1.06362021,3310.7,3309.6,0.1422531]
[1768722389347,0.00225341,3311.0,3309.6,0.1422531]
[1768722389646,1.06361756,3310.9,3309.6,0.1422531]
[1768722389943,1.06361756,3310.8,3309.6,0.1422531]
[1768722390243,1.06361756,3310.7,3309.6,0.1422531]
[1768722390445,0.00225341,3311.0,3309.6,0.1422531]
[1768722390644,1.06361591,3310.9,3309.6,0.1422531]
[1768722390844,1.06361591,3310.8,3309.6,0.1422531]
[1768722391040,1.06361591,3310.7,3309.6,0.1422531]
[1768722391245,0.00225341,3311.0,3309.6,0.1422531]
[1768722391543,1.06361351,3310.9,3309.6,0.1422531]
[1768722391744,1.06361351,3310.8,3309.6,0.1422531]
[1768722391946,1.06361351,3310.7,3309.6,0.1422531]
[1768722392151,0.00225341,3311.0,3309.6,0.1422531]
[1768722392351,1.06360972,3310.9,3309.6,0.1422531]
[1768722392551,1.06360972,3310.8,3309.6,0.1422531]
[1768722392749,1.06360972,3310.7,3309.6,0.1422531]
[1768722393055,0.00225341,3311.0,3309.6,0.1422531]
[1768722393358,1.06363853,3310.9,3309.6,0.1422531]
[1768722393558,1.06363853,3310.8,3309.6,0.1422531]
[1768722393746,0.00225341,3311.0,3309.6,0.1422531]
[1768722393945,1.06357255,3310.9,3309.6,0.1422531]
[1768722394146,1.06357255,3310.8,3309.6,0.1422531]
[1768722394346,0.00225341,3311.0,3309.8,0.13485599]
[1768722394545,1.06354841,3310.9,3309.8,0.13485599]
[1768722394846,0.00225341,3311.0,3309.8,0.13485599]
[1768722398462,3.13042669,3311.9,3310.2,0.13069151]
[1768722398663,1.39426604,3311.8,3310.2,0.13069151]
[1768722398954,1.06282932,3311.7,3310.2,0.13069151]
[1768722399150,1.06282932,3311.6,3310.2,0.13069151]
[1768722399349,1.06282932,3311.5,3310.2,0.13069151]
[1768722399550,1.06282932,3311.4,3310.2,0.13069151]
[1768722399752,0.00254124,3311.6,3310.2,0.13069151]
[1768722399948,1.06249558,3311.5,3310.2,0.13069151]
[1768722400148,0.00254124,3311.6,3310.2,0.13069151]
[1768722400348,1.06222233,3311.5,3310.2,0.13069151]
[1768722400550,0.00254124,3311.6,3310.2,0.13069151]
[1768722400857,1.06222233,3311.5,3310.2,0.13069151]
[1768722401054,0.00254124,3311.6,3310.2,0.13069151]
[1768722401358,1.06223127,3311.5,3310.2,0.13069151]
[1768722401546,0.00254124,3311.6,3310.2,0.13069151]
[1768722401747,1.06200412,3311.5,3310.2,0.13069151]
[1768722401956,0.00254124,3311.6,3310.2,0.13069151]
[1768722402259,1.06200412,3311.5,3310.2,0.13069151]
[1768722402449,0.00254124,3311.6,3310.2,0.13069151]
[1768722402646,1.06182167,3311.5,3310.2,0.13069151]
[1768722402847,0.00254124,3311.6,3310.2,0.13069151]
[1768722417370,0.97637503,3311.6,3310.2,1.1045253]
[1768722417666,0.97637503,3311.6,3310.3,0.13951459]
[1768722419071,0.00254124,3311.6,3310.3,0.13951459]
[1768722420771,0.97383379,3311.5,3310.3,0.13951459]
[1768722421164,0.00254124,3311.6,3310.4,0.97383379]
[1768722421385,0.00254124,3311.6,3310.5,0.13951459]
[1768722422172,0.00254124,3311.6,3310.6,1.11334838]
[1768722422972,0.00254124,3311.6,3310.6,0.13951459]
[1768722425673,0.00254124,3311.6,3310.3,0.97383379]
[1768722425873,0.97383379,3311.5,3310.2,0.13951459]
[1768722430181,0.00254124,3311.6,3310.2,0.13951459]
[1768722430182,0.97383379,3311.3,3310.2,0.13951459]
[1768722432679,0.97383379,3311.1,3309.8,1.11334838]
[1768722433589,0.97383379,3311.2,3309.8,1.11334838]
[1768722433778,0.97383379,3311.2,3309.9,0.13951459]
[1768722434374,0.97383379,3310.8,3309.9,0.13951459]
[1768722434683,0.97383379,3311.0,3309.9,0.13951459]
[1768722434898,0.97383379,3311.2,3309.9,0.13951459]
[1768722440991,0.13074514,3311.5,3309.9,0.13951459]
[1768722441179,0.97383379,3311.2,3309.9,0.13951459]
[1768722442591,0.97383379,3311.0,3309.6,0.97383379]
[1768722442896,0.97383379,3310.6,3309.5,0.13206294]
[1768722443595,0.97383379,3310.4,3309.5,0.13206294]
[1768722448098,0.97383379,3310.7,3309.5,0.13206294]
[1768722450702,0.13648753,3311.0,3309.6,0.97383379]
[1768722451002,1.11032132,3311.0,3309.6,0.97383379]
[1768722451898,0.97383379,3310.8,3309.6,0.97383379]
[1768722471705,0.97383379,3310.8,3309.6,1.11111705]
[1768722472010,0.97383379,3311.0,3309.6,1.11111705]
[1768722472198,1.06200996,3310.9,3309.6,1.11111705]
[1768722472403,1.06200996,3310.8,3309.6,1.11111705]
[1768722472606,1.06200996,3310.7,3309.7,0.14290763]
[1768722472807,0.97383379,3311.0,3309.7,0.14290763]
[1768722473107,1.06262144,3310.9,3309.7,0.14290763]
[1768722473308,1.06262144,3310.8,3309.7,0.14290763]
[1768722473499,1.06262144,3310.7,3309.7,0.14290763]
[1768722473703,0.97383379,3311.0,3309.7,0.14290763]
[1768722473903,1.06270136,3310.9,3309.7,0.14290763]
[1768722474116,1.06270136,3310.8,3309.7,0.14290763]
[1768722474310,1.06270136,3310.7,3309.7,0.14290763]
[1768722474511,0.97383379,3311.0,3309.7,0.14290763]